[Event "*** SCC Grand Prix: Titled Tuesday Blitz"]
[Site "Chess.com"]
[Date "2020.06.02"]
[Round "4"]
[White "mattcolins2025"]
[Black "Ziachess74"]
[Result "0-1"]
[WhiteElo "2365"]
[BlackElo "2603"]
[TimeControl "180+1"]
[EndTime "10:40:05 PDT"]
[Termination "Ziachess74 won by resignation"]

1. d4 {[%clk 0:03:00.9]} 1... d5 {[%clk 0:02:59.4]} 2. c4 {[%clk 0:03:01.2]}
2... e6 {[%clk 0:02:59.5]} 3. Nc3 {[%clk 0:03:01.7]} 3... c6 {[%clk 0:02:58.8]}
4. Nf3 {[%clk 0:03:01.7]} 4... dxc4 {[%clk 0:02:50.8]} 5. a4 {[%clk 0:03:01.1]}
5... Bb4 {[%clk 0:02:49.3]} 6. Bd2 {[%clk 0:02:43.2]} 6... b5 {[%clk 0:02:47.3]}
7. axb5 {[%clk 0:02:42.6]} 7... Bxc3 {[%clk 0:02:46.6]} 8. Bxc3 {[%clk
0:02:42.9]} 8... cxb5 {[%clk 0:02:47.5]} 9. b3 {[%clk 0:02:41.4]} 9... cxb3
{[%clk 0:02:07.8]} 10. Qxb3 {[%clk 0:02:41.2]} 10... a6 {[%clk 0:01:59.8]} 11.
e3 {[%clk 0:02:40.1]} 11... Bb7 {[%clk 0:01:50.9]} 12. Ne5 {[%clk 0:02:36.3]}
12... Bd5 {[%clk 0:01:44.1]} 13. Qb2 {[%clk 0:02:04.7]} 13... Nd7 {[%clk
0:01:32.9]} 14. Ba5 {[%clk 0:01:57.5]} 14... Qb8 {[%clk 0:01:15.8]} 15. Nd3
{[%clk 0:01:40.3]} 15... Ngf6 {[%clk 0:01:13.1]} 16. Bb4 {[%clk 0:01:39.3]}
16... Bc4 {[%clk 0:01:01.6]} 17. Nf4 {[%clk 0:01:18.7]} 17... Bxf1 {[%clk
0:00:57.2]} 18. Rxf1 {[%clk 0:01:17.8]} 18... g5 {[%clk 0:00:49.4]} 19. Nd3
{[%clk 0:01:16.7]} 19... Qxh2 {[%clk 0:00:46]} 20. d5 {[%clk 0:01:08.5]} 20...
exd5 {[%clk 0:00:39.2]} 21. g3 {[%clk 0:00:57.3]} 21... Qg2 {[%clk 0:00:26]} 22.
Bc3 {[%clk 0:00:55.9]} 22... Qf3 {[%clk 0:00:25.4]} 23. Ne5 {[%clk 0:00:48]}
23... Nxe5 {[%clk 0:00:19.4]} 24. Bxe5 {[%clk 0:00:47.4]} 24... O-O {[%clk
0:00:17.4]} 25. Bxf6 {[%clk 0:00:46.4]} 25... Rfe8 {[%clk 0:00:16.5]} 26. Bd4
{[%clk 0:00:40.6]} 26... f5 {[%clk 0:00:14.7]} 27. Qe2 {[%clk 0:00:20.2]} 27...
Qe4 {[%clk 0:00:14.7]} 28. f3 {[%clk 0:00:19.8]} 28... Qe6 {[%clk 0:00:14.4]}
29. Kf2 {[%clk 0:00:19.9]} 29... Rac8 {[%clk 0:00:12.7]} 30. Rfc1 {[%clk
0:00:19.7]} 30... Rc4 {[%clk 0:00:12.5]} 31. Rxc4 {[%clk 0:00:19.5]} 31... dxc4
{[%clk 0:00:12.3]} 32. Rh1 {[%clk 0:00:17.3]} 32... b4 {[%clk 0:00:10.3]} 33.
Qc2 {[%clk 0:00:15.5]} 33... c3 {[%clk 0:00:09.4]} 34. Qd3 {[%clk 0:00:15.1]}
34... Rc8 {[%clk 0:00:07.8]} 35. g4 {[%clk 0:00:15.2]} 35... c2 {[%clk
0:00:07.7]} 36. gxf5 {[%clk 0:00:14.9]} 36... Qc4 {[%clk 0:00:07.6]} 37. Qxc4+
{[%clk 0:00:14.6]} 37... Rxc4 {[%clk 0:00:08.4]} 38. Rc1 {[%clk 0:00:15.2]}
38... b3 {[%clk 0:00:08.8]} 39. Ke2 {[%clk 0:00:15]} 39... Rxd4 {[%clk 0:00:09]}
40. exd4 {[%clk 0:00:12.9]} 40... b2 {[%clk 0:00:09.3]} 41. Rxc2 {[%clk
0:00:13]} 41... b1=Q {[%clk 0:00:09.6]} 42. Rc8+ {[%clk 0:00:13.6]} 42... Kf7
{[%clk 0:00:09.6]} 43. Rc7+ {[%clk 0:00:13.3]} 43... Kf6 {[%clk 0:00:09.8]} 44.
Rxh7 {[%clk 0:00:13.5]} 44... Qxf5 {[%clk 0:00:09.8]} 45. Rh6+ {[%clk
0:00:13.9]} 45... Kg7 {[%clk 0:00:09.5]} 46. Rh2 {[%clk 0:00:12.3]} 46... Qc2+
{[%clk 0:00:09.1]} 0-1

[Event "*** SCC Grand Prix: Titled Tuesday Blitz"]
[Site "Chess.com"]
[Date "2020.06.02"]
[Round "4"]
[White "eCztery"]
[Black "JonahWillow"]
[Result "1-0"]
[WhiteElo "2370"]
[BlackElo "2653"]
[TimeControl "180+1"]
[EndTime "10:40:05 PDT"]
[Termination "eCztery won by resignation"]

1. e4 {[%clk 0:03:00.9]} 1... c5 {[%clk 0:03:00.1]} 2. Nf3 {[%clk 0:03:01]} 2...
e6 {[%clk 0:02:59.8]} 3. d4 {[%clk 0:02:59.8]} 3... cxd4 {[%clk 0:03:00.7]} 4.
Nxd4 {[%clk 0:03:00.7]} 4... Nc6 {[%clk 0:03:00.5]} 5. Nc3 {[%clk 0:03:00]} 5...
Qc7 {[%clk 0:03:00.1]} 6. Nb3 {[%clk 0:02:59.2]} 6... Nf6 {[%clk 0:02:55.7]} 7.
Bd3 {[%clk 0:02:56.8]} 7... a6 {[%clk 0:02:51.8]} 8. O-O {[%clk 0:02:53]} 8...
Be7 {[%clk 0:02:41.7]} 9. f4 {[%clk 0:02:47.2]} 9... d6 {[%clk 0:02:41.6]} 10.
Be3 {[%clk 0:02:43.6]} 10... O-O {[%clk 0:02:36]} 11. Qf3 {[%clk 0:02:44]} 11...
Nd7 {[%clk 0:02:05.7]} 12. Rad1 {[%clk 0:02:38.6]} 12... b5 {[%clk 0:02:03.3]}
13. Qh3 {[%clk 0:02:34.5]} 13... g6 {[%clk 0:01:56.2]} 14. f5 {[%clk 0:02:31.1]}
14... Nf6 {[%clk 0:01:36]} 15. Bg5 {[%clk 0:02:18.3]} 15... Ne5 {[%clk
0:01:24.4]} 16. Kh1 {[%clk 0:02:14]} 16... Bd7 {[%clk 0:00:37.4]} 17. Nd4 {[%clk
0:02:07.6]} 17... Qc8 {[%clk 0:00:33.3]} 18. Nce2 {[%clk 0:01:55.6]} 18... Nc6
{[%clk 0:00:24.5]} 19. Nxc6 {[%clk 0:01:45.7]} 19... Bxc6 {[%clk 0:00:25.4]} 20.
Nd4 {[%clk 0:01:45.7]} 20... Bd7 {[%clk 0:00:25.5]} 21. Bh6 {[%clk 0:01:42.9]}
21... Re8 {[%clk 0:00:23.3]} 22. Bg5 {[%clk 0:01:39.6]} 22... e5 {[%clk
0:00:17.5]} 23. Ne2 {[%clk 0:01:37.4]} 23... d5 {[%clk 0:00:16.7]} 24. Nc3
{[%clk 0:01:31.9]} 24... d4 {[%clk 0:00:13.8]} 25. Bxf6 {[%clk 0:01:32.3]} 25...
Bxf6 {[%clk 0:00:08.3]} 26. Nd5 {[%clk 0:01:32.2]} 26... Bh8 {[%clk 0:00:05.9]}
27. Qh4 {[%clk 0:01:27.6]} 27... Bc6 {[%clk 0:00:05.8]} 28. Ne7+ {[%clk
0:01:24]} 28... Rxe7 {[%clk 0:00:06.2]} 29. Qxe7 {[%clk 0:01:24.9]} 29... Qd8
{[%clk 0:00:06.6]} 30. Qb4 {[%clk 0:01:02.6]} 30... Bf6 {[%clk 0:00:05.4]} 31.
Rf3 {[%clk 0:01:00.9]} 31... a5 {[%clk 0:00:04.8]} 32. Qe1 {[%clk 0:00:55.2]}
32... g5 {[%clk 0:00:04.8]} 33. Rh3 {[%clk 0:00:53.6]} 33... Kg7 {[%clk
0:00:03.8]} 34. Qe2 {[%clk 0:00:54]} 34... h6 {[%clk 0:00:03.8]} 35. Qh5 {[%clk
0:00:53.5]} 35... Qh8 {[%clk 0:00:04.7]} 36. Rg3 {[%clk 0:00:53.6]} 36... Kf8
{[%clk 0:00:04.8]} 37. a4 {[%clk 0:00:53.2]} 37... b4 {[%clk 0:00:04.5]} 38. Bc4
{[%clk 0:00:53.4]} 38... Qg7 {[%clk 0:00:04.9]} 39. c3 {[%clk 0:00:44.8]} 39...
Bxe4 {[%clk 0:00:03.4]} 40. Qe2 {[%clk 0:00:37.9]} 40... Bc6 {[%clk 0:00:02.7]}
41. cxd4 {[%clk 0:00:32.5]} 41... exd4 {[%clk 0:00:03.5]} 42. Bb3 {[%clk
0:00:28.8]} 42... Re8 {[%clk 0:00:03.9]} 43. Qc4 {[%clk 0:00:29.2]} 43... Be4
{[%clk 0:00:03.9]} 44. h3 {[%clk 0:00:26.7]} 44... Bxf5 {[%clk 0:00:04.3]} 45.
Qc5+ {[%clk 0:00:27.1]} 45... Kg8 {[%clk 0:00:04]} 46. Qxf5 {[%clk 0:00:27.8]}
46... Be5 {[%clk 0:00:03.8]} 47. Rf3 {[%clk 0:00:25.8]} 47... Bf4 {[%clk
0:00:03.7]} 48. g3 {[%clk 0:00:23.9]} 48... Re5 {[%clk 0:00:04.2]} 49. Qc8+
{[%clk 0:00:23.4]} 1-0

[Event "*** SCC Grand Prix: Titled Tuesday Blitz"]
[Site "Chess.com"]
[Date "2020.06.02"]
[Round "4"]
[White "GukeshDommaraju"]
[Black "Kildepiotr"]
[Result "1-0"]
[WhiteElo "2662"]
[BlackElo "2474"]
[TimeControl "180+1"]
[EndTime "10:40:06 PDT"]
[Termination "GukeshDommaraju won by resignation"]

1. c4 {[%clk 0:03:00.9]} 1... g6 {[%clk 0:02:59.4]} 2. d4 {[%clk 0:02:59.2]}
2... Bg7 {[%clk 0:02:59.7]} 3. Nc3 {[%clk 0:02:59.4]} 3... d6 {[%clk 0:02:59.8]}
4. e4 {[%clk 0:02:57.9]} 4... Nd7 {[%clk 0:02:59.9]} 5. Nf3 {[%clk 0:02:56]}
5... e5 {[%clk 0:03:00.1]} 6. Be2 {[%clk 0:02:49.6]} 6... Ngf6 {[%clk
0:02:59.9]} 7. O-O {[%clk 0:02:48.7]} 7... O-O {[%clk 0:02:59.8]} 8. d5 {[%clk
0:02:43.4]} 8... Nc5 {[%clk 0:02:58.8]} 9. Nd2 {[%clk 0:02:36]} 9... a5 {[%clk
0:02:56.4]} 10. b3 {[%clk 0:02:34.4]} 10... Ne8 {[%clk 0:02:45.7]} 11. a3 {[%clk
0:02:30]} 11... f5 {[%clk 0:02:45.3]} 12. Bb2 {[%clk 0:02:28.4]} 12... Nf6
{[%clk 0:02:41.5]} 13. Qc2 {[%clk 0:02:26.5]} 13... Bh6 {[%clk 0:02:39.9]} 14.
f3 {[%clk 0:02:20.4]} 14... Be3+ {[%clk 0:02:32.7]} 15. Kh1 {[%clk 0:02:20.6]}
15... Bd4 {[%clk 0:02:31.8]} 16. b4 {[%clk 0:02:14.4]} 16... axb4 {[%clk
0:02:31.4]} 17. axb4 {[%clk 0:02:13.9]} 17... Rxa1 {[%clk 0:02:31.2]} 18. Rxa1
{[%clk 0:02:13.8]} 18... Na6 {[%clk 0:02:30.8]} 19. Nb3 {[%clk 0:01:58.4]} 19...
Nxb4 {[%clk 0:02:29.3]} 20. Qd2 {[%clk 0:01:58.3]} 20... c5 {[%clk 0:02:21.5]}
21. dxc6 {[%clk 0:01:53.5]} 21... Nxc6 {[%clk 0:02:21.2]} 22. Nxd4 {[%clk
0:01:49.6]} 22... Nxd4 {[%clk 0:02:21.2]} 23. Rd1 {[%clk 0:01:43.9]} 23... fxe4
{[%clk 0:02:15.3]} 24. Nxe4 {[%clk 0:01:41.2]} 24... Nxe4 {[%clk 0:02:14.8]} 25.
fxe4 {[%clk 0:01:41.5]} 25... Nxe2 {[%clk 0:02:06.6]} 26. Qxe2 {[%clk
0:01:42.4]} 26... Qf6 {[%clk 0:01:57.3]} 27. h3 {[%clk 0:01:38.4]} 27... Qh4
{[%clk 0:01:18.1]} 28. Qe3 {[%clk 0:01:12.6]} 28... Rf2 {[%clk 0:00:43.4]} 29.
Bc3 {[%clk 0:00:55.8]} 29... Qf6 {[%clk 0:00:39.7]} 30. c5 {[%clk 0:00:50.7]}
30... dxc5 {[%clk 0:00:34.1]} 31. Bxe5 {[%clk 0:00:42.9]} 31... Rf1+ {[%clk
0:00:33.9]} 32. Rxf1 {[%clk 0:00:41.8]} 32... Qxf1+ {[%clk 0:00:33.8]} 33. Kh2
{[%clk 0:00:42.4]} 33... Qf8 {[%clk 0:00:32.8]} 34. Qb3+ {[%clk 0:00:41.1]}
34... Qf7 {[%clk 0:00:32.8]} 35. Qb6 {[%clk 0:00:40.8]} 35... Qe7 {[%clk
0:00:30.2]} 36. Bd6 {[%clk 0:00:36.5]} 36... Qe8 {[%clk 0:00:27.8]} 37. Qxc5
{[%clk 0:00:34.8]} 37... Be6 {[%clk 0:00:26.6]} 38. Be5 {[%clk 0:00:34]} 38...
Qc6 {[%clk 0:00:24]} 39. Qe7 {[%clk 0:00:32.1]} 39... Qd7 {[%clk 0:00:24.1]} 40.
Qf6 {[%clk 0:00:32.2]} 40... h5 {[%clk 0:00:19.4]} 41. Qxg6+ {[%clk 0:00:31.7]}
41... Kf8 {[%clk 0:00:18.4]} 42. Bf4 {[%clk 0:00:30.4]} 42... Qf7 {[%clk
0:00:17.2]} 43. Bd6+ {[%clk 0:00:29.3]} 43... Ke8 {[%clk 0:00:17.2]} 44. Qg5
{[%clk 0:00:29.2]} 44... Kd7 {[%clk 0:00:17]} 45. Bg3 {[%clk 0:00:28]} 45... Kc6
{[%clk 0:00:14.8]} 46. Qe5 {[%clk 0:00:28.1]} 46... Qd7 {[%clk 0:00:14.2]} 47.
Qc3+ {[%clk 0:00:24.7]} 47... Kb5 {[%clk 0:00:13.9]} 48. Qb2+ {[%clk 0:00:23.9]}
48... Kc4 {[%clk 0:00:14.2]} 49. Qb6 {[%clk 0:00:23.1]} 49... Qc6 {[%clk
0:00:13.8]} 50. Qe3 {[%clk 0:00:23.1]} 50... b5 {[%clk 0:00:13.8]} 51. Qc1+
{[%clk 0:00:22.5]} 1-0

[Event "*** SCC Grand Prix: Titled Tuesday Blitz"]
[Site "Chess.com"]
[Date "2020.06.02"]
[Round "4"]
[White "El_ultimo_Pablo"]
[Black "Titus369"]
[Result "0-1"]
[WhiteElo "2359"]
[BlackElo "2588"]
[TimeControl "180+1"]
[EndTime "10:40:06 PDT"]
[Termination "Titus369 won by checkmate"]

1. d4 {[%clk 0:03:00.6]} 1... d5 {[%clk 0:03:00]} 2. c4 {[%clk 0:02:58.3]} 2...
e6 {[%clk 0:03:00.1]} 3. Nf3 {[%clk 0:02:58.5]} 3... Nf6 {[%clk 0:02:59.8]} 4.
Nc3 {[%clk 0:02:58.9]} 4... Be7 {[%clk 0:03:00]} 5. Qc2 {[%clk 0:02:59.1]} 5...
O-O {[%clk 0:02:51.9]} 6. Bg5 {[%clk 0:02:59.4]} 6... c5 {[%clk 0:02:51.7]} 7.
cxd5 {[%clk 0:02:58]} 7... Nxd5 {[%clk 0:02:46.5]} 8. Bxe7 {[%clk 0:02:57.9]}
8... Nxe7 {[%clk 0:02:40.8]} 9. dxc5 {[%clk 0:02:56.7]} 9... Qa5 {[%clk
0:02:39.9]} 10. g3 {[%clk 0:02:50.3]} 10... Qxc5 {[%clk 0:02:35.9]} 11. Bg2
{[%clk 0:02:50.6]} 11... Nbc6 {[%clk 0:02:36.4]} 12. O-O {[%clk 0:02:49.4]}
12... e5 {[%clk 0:02:36.1]} 13. Rac1 {[%clk 0:02:48.4]} 13... Bf5 {[%clk
0:02:35.4]} 14. Qb3 {[%clk 0:02:38.2]} 14... Be6 {[%clk 0:01:56.7]} 15. Qa4
{[%clk 0:02:35.4]} 15... Qb6 {[%clk 0:01:50.2]} 16. b3 {[%clk 0:02:18.2]} 16...
Rac8 {[%clk 0:01:41.6]} 17. Ng5 {[%clk 0:02:12.4]} 17... Bd7 {[%clk 0:01:34.1]}
18. Qh4 {[%clk 0:02:06.3]} 18... h6 {[%clk 0:01:32.1]} 19. Nge4 {[%clk
0:02:02.8]} 19... Nf5 {[%clk 0:01:13.6]} 20. Qh5 {[%clk 0:01:55.1]} 20... Ncd4
{[%clk 0:01:06.9]} 21. Nd5 {[%clk 0:01:45.1]} 21... Qb5 {[%clk 0:01:01.1]} 22.
Rxc8 {[%clk 0:01:40.4]} 22... Rxc8 {[%clk 0:01:02]} 23. e3 {[%clk 0:01:22.6]}
23... Ne2+ {[%clk 0:00:49]} 24. Kh1 {[%clk 0:01:21.9]} 24... Rc1 {[%clk
0:00:38]} 25. Rxc1 {[%clk 0:01:16.6]} 25... Nxc1 {[%clk 0:00:37.5]} 26. g4
{[%clk 0:00:59.3]} 26... Qd3 {[%clk 0:00:24.5]} 27. h3 {[%clk 0:00:39.4]} 27...
Qd1+ {[%clk 0:00:20.5]} 28. Kh2 {[%clk 0:00:39.3]} 28... Ne2 {[%clk 0:00:21]}
29. h4 {[%clk 0:00:28.2]} 29... Qg1+ {[%clk 0:00:14.2]} 30. Kh3 {[%clk
0:00:28.6]} 30... Nfd4 {[%clk 0:00:12.8]} 31. Nd6 {[%clk 0:00:18.2]} 31... g6
{[%clk 0:00:05.2]} 32. Qxe5 {[%clk 0:00:08.3]} 32... Bxg4+ {[%clk 0:00:04.7]}
33. Kxg4 {[%clk 0:00:08.5]} 33... Qxg2+ {[%clk 0:00:05.2]} 34. Qg3 {[%clk
0:00:02.8]} 34... Nxg3 {[%clk 0:00:05.1]} 35. Nf6+ {[%clk 0:00:03]} 35... Kf8
{[%clk 0:00:04.6]} 36. f3 {[%clk 0:00:01.1]} 36... Nge2# {[%clk 0:00:04]} 0-1

[Event "*** SCC Grand Prix: Titled Tuesday Blitz"]
[Site "Chess.com"]
[Date "2020.06.02"]
[Round "4"]
[White "Baron_von_Koenig"]
[Black "Dmitry_Konenkin"]
[Result "0-1"]
[WhiteElo "2435"]
[BlackElo "2314"]
[TimeControl "180+1"]
[EndTime "10:40:06 PDT"]
[Termination "Dmitry_Konenkin won by checkmate"]

1. Nc3 {[%clk 0:02:54.3]} 1... d6 {[%clk 0:02:55.8]} 2. f4 {[%clk 0:02:53.6]}
2... e5 {[%clk 0:02:53.2]} 3. e4 {[%clk 0:02:49.9]} 3... Nf6 {[%clk 0:02:52.3]}
4. Nf3 {[%clk 0:02:47.8]} 4... Nbd7 {[%clk 0:02:49.1]} 5. Bc4 {[%clk 0:02:45.4]}
5... Be7 {[%clk 0:02:49]} 6. O-O {[%clk 0:02:43]} 6... O-O {[%clk 0:02:49.1]} 7.
d3 {[%clk 0:02:43]} 7... c6 {[%clk 0:02:48.6]} 8. a4 {[%clk 0:02:33.1]} 8... a5
{[%clk 0:02:24.1]} 9. Qe1 {[%clk 0:02:30]} 9... Qc7 {[%clk 0:02:10.7]} 10. Nh4
{[%clk 0:02:23.8]} 10... Nb6 {[%clk 0:02:08]} 11. Bb3 {[%clk 0:02:23]} 11... Nh5
{[%clk 0:01:46.4]} 12. fxe5 {[%clk 0:02:06.8]} 12... dxe5 {[%clk 0:01:45.4]} 13.
Nf5 {[%clk 0:02:07.1]} 13... Bxf5 {[%clk 0:01:38.9]} 14. Rxf5 {[%clk 0:02:05.3]}
14... g6 {[%clk 0:01:32.8]} 15. Rxh5 {[%clk 0:02:04.2]} 15... gxh5 {[%clk
0:01:27.2]} 16. Bh6 {[%clk 0:02:04.7]} 16... Kh8 {[%clk 0:01:20.1]} 17. Bxf8
{[%clk 0:02:04]} 17... Rxf8 {[%clk 0:01:20]} 18. Qf2 {[%clk 0:02:02.1]} 18...
Nd7 {[%clk 0:01:00.4]} 19. Qf5 {[%clk 0:01:59.9]} 19... Nc5 {[%clk 0:00:50.9]}
20. Bc4 {[%clk 0:01:59.1]} 20... Ne6 {[%clk 0:00:22.1]} 21. Kh1 {[%clk
0:01:27.4]} 21... Nd4 {[%clk 0:00:19.7]} 22. Qxh5 {[%clk 0:01:26.8]} 22... Nxc2
{[%clk 0:00:18.9]} 23. Rf1 {[%clk 0:01:19.7]} 23... f6 {[%clk 0:00:19.3]} 24.
Rf3 {[%clk 0:01:13.1]} 24... Bc5 {[%clk 0:00:15.2]} 25. Nd1 {[%clk 0:01:05.2]}
25... Qd7 {[%clk 0:00:11]} 26. Rh3 {[%clk 0:01:03.5]} 26... Nd4 {[%clk
0:00:08.8]} 27. Ne3 {[%clk 0:01:01.2]} 27... b5 {[%clk 0:00:07.9]} 28. axb5
{[%clk 0:00:55.5]} 28... cxb5 {[%clk 0:00:08.8]} 29. Bd5 {[%clk 0:00:54.7]}
29... Rc8 {[%clk 0:00:08.7]} 30. Qh6 {[%clk 0:00:44]} 30... Bf8 {[%clk
0:00:07.3]} 31. Qxf6+ {[%clk 0:00:38.9]} 31... Bg7 {[%clk 0:00:07.6]} 32. Qf1
{[%clk 0:00:34.8]} 32... Rf8 {[%clk 0:00:07.6]} 33. Qe1 {[%clk 0:00:30]} 33...
b4 {[%clk 0:00:07]} 34. Qh4 {[%clk 0:00:24.4]} 34... Bf6 {[%clk 0:00:06.1]} 35.
Qh5 {[%clk 0:00:20.2]} 35... Qc7 {[%clk 0:00:05.6]} 36. Bc4 {[%clk 0:00:18.6]}
36... a4 {[%clk 0:00:05.2]} 37. Nd5 {[%clk 0:00:18.7]} 37... Qg7 {[%clk
0:00:04.9]} 38. g4 {[%clk 0:00:18.5]} 38... Bg5 {[%clk 0:00:04.4]} 39. Nb6
{[%clk 0:00:16.3]} 39... Rf1+ {[%clk 0:00:04.3]} 40. Kg2 {[%clk 0:00:16.6]}
40... Rf8 {[%clk 0:00:04.3]} 41. Rg3 {[%clk 0:00:15.4]} 41... Qf6 {[%clk
0:00:03.9]} 42. h3 {[%clk 0:00:15.2]} 42... Qf1+ {[%clk 0:00:03.7]} 43. Kh2
{[%clk 0:00:15]} 43... Rf2+ {[%clk 0:00:04.3]} 44. Rg2 {[%clk 0:00:15.4]} 44...
Qxg2# {[%clk 0:00:04.6]} 0-1

[Event "*** SCC Grand Prix: Titled Tuesday Blitz"]
[Site "Chess.com"]
[Date "2020.06.02"]
[Round "4"]
[White "GregShahade"]
[Black "Grieve72"]
[Result "1-0"]
[WhiteElo "2585"]
[BlackElo "2357"]
[TimeControl "180+1"]
[EndTime "10:40:07 PDT"]
[Termination "GregShahade won by resignation"]

1. e4 {[%clk 0:03:00.9]} 1... c5 {[%clk 0:03:00]} 2. Nf3 {[%clk 0:03:00.9]} 2...
e6 {[%clk 0:03:00.4]} 3. d4 {[%clk 0:03:00.8]} 3... cxd4 {[%clk 0:03:01.3]} 4.
Nxd4 {[%clk 0:03:01.1]} 4... Nc6 {[%clk 0:03:02]} 5. Nc3 {[%clk 0:03:01.3]} 5...
Qc7 {[%clk 0:03:02.5]} 6. f4 {[%clk 0:03:00]} 6... Nxd4 {[%clk 0:03:01.9]} 7.
Qxd4 {[%clk 0:02:59.4]} 7... b6 {[%clk 0:03:02.8]} 8. Bd2 {[%clk 0:02:57.7]}
8... Bb7 {[%clk 0:03:01.3]} 9. O-O-O {[%clk 0:02:57.5]} 9... Nf6 {[%clk
0:02:57.6]} 10. Be2 {[%clk 0:02:52.2]} 10... Bc5 {[%clk 0:02:49.5]} 11. Qd3
{[%clk 0:02:51.7]} 11... d5 {[%clk 0:02:49.6]} 12. Bf3 {[%clk 0:02:50.4]} 12...
dxe4 {[%clk 0:02:17.2]} 13. Nxe4 {[%clk 0:02:48.5]} 13... Nxe4 {[%clk
0:02:11.7]} 14. Bxe4 {[%clk 0:02:48.9]} 14... Rd8 {[%clk 0:02:06.2]} 15. Qb5+
{[%clk 0:02:43]} 15... Qd7 {[%clk 0:02:01]} 16. Qxd7+ {[%clk 0:02:34.2]} 16...
Rxd7 {[%clk 0:02:01.9]} 17. Bxb7 {[%clk 0:02:34]} 17... Rxb7 {[%clk 0:02:02.8]}
18. Bc3 {[%clk 0:02:33.2]} 18... f6 {[%clk 0:01:45]} 19. Rd3 {[%clk 0:02:32.2]}
19... b5 {[%clk 0:01:27.7]} 20. a3 {[%clk 0:02:31.3]} 20... Ke7 {[%clk 0:01:11]}
21. Re1 {[%clk 0:02:26.1]} 21... Rc8 {[%clk 0:01:05.1]} 22. Re4 {[%clk
0:02:14.7]} 22... h6 {[%clk 0:00:52.2]} 23. Kd1 {[%clk 0:02:13.3]} 23... Rd7
{[%clk 0:00:46.6]} 24. Ke2 {[%clk 0:02:09.1]} 24... Rxd3 {[%clk 0:00:42.1]} 25.
Kxd3 {[%clk 0:02:10]} 25... Rd8+ {[%clk 0:00:41.5]} 26. Ke2 {[%clk 0:02:09.5]}
26... Rc8 {[%clk 0:00:40.4]} 27. Kd1 {[%clk 0:01:38.8]} 27... Bxa3 {[%clk
0:00:20]} 28. f5 {[%clk 0:01:36.3]} 28... e5 {[%clk 0:00:12.1]} 29. Rg4 {[%clk
0:01:36.1]} 29... Kf7 {[%clk 0:00:10.8]} 30. Bxe5 {[%clk 0:01:15.5]} 30... fxe5
{[%clk 0:00:08.9]} 31. bxa3 {[%clk 0:01:15.9]} 31... Rc4 {[%clk 0:00:07.9]} 32.
Rxc4 {[%clk 0:01:04.9]} 32... bxc4 {[%clk 0:00:07.8]} 33. Kd2 {[%clk 0:01:05.4]}
33... h5 {[%clk 0:00:04.2]} 34. Kc3 {[%clk 0:01:04.3]} 34... Kf6 {[%clk
0:00:04.3]} 35. Kxc4 {[%clk 0:01:04.5]} 35... Kxf5 {[%clk 0:00:04.9]} 36. Kd3
{[%clk 0:00:58.3]} 36... h4 {[%clk 0:00:02.6]} 37. c4 {[%clk 0:00:54.2]} 37...
Kf6 {[%clk 0:00:02.4]} 38. Ke4 {[%clk 0:00:54]} 38... Ke6 {[%clk 0:00:02.6]} 39.
c5 {[%clk 0:00:53.8]} 39... a5 {[%clk 0:00:02.6]} 40. a4 {[%clk 0:00:52.7]}
40... g6 {[%clk 0:00:02.9]} 41. g3 {[%clk 0:00:34]} 41... h3 {[%clk 0:00:02.7]}
42. g4 {[%clk 0:00:33.9]} 42... g5 {[%clk 0:00:02.7]} 43. c6 {[%clk 0:00:34.5]}
43... Kd6 {[%clk 0:00:03.3]} 44. c7 {[%clk 0:00:33.3]} 44... Kxc7 {[%clk
0:00:03.4]} 45. Kxe5 {[%clk 0:00:33.9]} 45... Kc6 {[%clk 0:00:02.5]} 46. Kf5
{[%clk 0:00:28.8]} 46... Kc5 {[%clk 0:00:03.1]} 47. Kxg5 {[%clk 0:00:29.3]}
47... Kb4 {[%clk 0:00:04]} 48. Kh4 {[%clk 0:00:26.8]} 48... Kxa4 {[%clk
0:00:04.9]} 49. g5 {[%clk 0:00:27.3]} 49... Kb3 {[%clk 0:00:04]} 50. g6 {[%clk
0:00:27.9]} 50... a4 {[%clk 0:00:04.1]} 51. g7 {[%clk 0:00:28.6]} 51... a3
{[%clk 0:00:04.1]} 52. g8=Q+ {[%clk 0:00:29.5]} 52... Kb2 {[%clk 0:00:04.6]} 53.
Kxh3 {[%clk 0:00:29.3]} 53... a2 {[%clk 0:00:04.6]} 54. Qxa2+ {[%clk 0:00:28.2]}
54... Kxa2 {[%clk 0:00:05.5]} 55. Kg4 {[%clk 0:00:28.5]} 55... Kb3 {[%clk
0:00:06.4]} 56. h4 {[%clk 0:00:28.8]} 56... Kc4 {[%clk 0:00:07.3]} 57. h5 {[%clk
0:00:29.7]} 57... Kd5 {[%clk 0:00:08.2]} 58. h6 {[%clk 0:00:30.6]} 58... Ke6
{[%clk 0:00:09.1]} 59. h7 {[%clk 0:00:31.5]} 1-0